fUST/lending_fUST_20240529
["ID","MTS","AMOUNT","RATE_DAILY","PERIOD"]
[328154406,1716951047895,-11106.56395415,0.00020909,2]
[328154407,1716951047904,-155.11890282,0.00020909,2]
[328154408,1716951047913,-151.0,0.00020909,2]
[328154409,1716951047922,-151.0,0.00020909,2]
[328154410,1716951047931,-367.53199,0.00020909,2]
[328154411,1716951047940,-367.53199,0.00020909,2]
[328154412,1716951047949,-167.989571,0.00020909,2]
[328154413,1716951047959,-167.989571,0.00020909,2]
[328154414,1716951047967,-1343.44685423,0.0002091,2]
[328154415,1716951047977,-1157.46575038,0.0002091,2]
[328154416,1716951047986,-282.47506049,0.0002091,2]
[328154417,1716951047995,-722.81856328,0.0002091,2]
[328154418,1716951048005,-1411.49613096,0.0002091,2]
[328154419,1716951048014,-216.41942103,0.0002091,2]
[328154420,1716951048023,-155.56706253,0.00020911,2]
[328154421,1716951048033,-175.42788462,0.00020912,2]
[328154422,1716951048043,-394.52030451,0.00020912,2]
[328154423,1716951048052,-155.1251519,0.00020912,2]
[328154424,1716951048061,-156.27534003,0.00020912,2]
[328154425,1716951048070,-194.97955778,0.00020912,2]
[328154426,1716951048079,-155.33665634,0.00020912,2]
[328154427,1716951048089,-1147.44372619,0.00021,2]
[328154428,1716951048098,-151.0,0.00021099,3]
[328154429,1716951048107,-151.0,0.00021138,2]
[328154430,1716951048116,-151.0,0.00021138,2]
[328154431,1716951048126,-306.0,0.00021454,2]
[328154432,1716951048135,-15138.14995808,0.00021499,7]
[328154433,1716951048145,-36770.96159256,0.000215,7]
[328154434,1716951048154,-3000.0,0.000215,2]
[328154435,1716951048165,-3000.0,0.0002151,2]
[328154436,1716951048177,-3000.0,0.0002152,2]
[328154437,1716951048187,-412.48050736,0.0002152,3]
[328154438,1716951048198,-3000.0,0.0002153,2]
[328154439,1716951048207,-151.0,0.0002153,2]
[328154440,1716951048216,-151.0,0.0002153,2]
[328154441,1716951048225,-367.53199,0.0002153,2]
[328154442,1716951048235,-367.53199,0.0002153,2]
[328154443,1716951048245,-167.989571,0.0002153,2]
[328154444,1716951048255,-167.989571,0.0002153,2]
[328154445,1716951048264,-3000.0,0.0002154,2]
[328154446,1716951048273,-3000.0,0.0002155,2]
[328154447,1716951048282,-3000.0,0.0002156,2]
[328154448,1716951048291,-151.0,0.0002156,2]
[328154449,1716951048300,-151.0,0.0002156,2]
[328154450,1716951048309,-3000.0,0.0002157,2]
[328154451,1716951048318,-3000.0,0.0002158,2]
[328154452,1716951048327,-3000.0,0.0002159,2]
[328154453,1716951048338,-3000.0,0.000216,2]
[328154454,1716951048348,-151.0,0.000216,2]
[328154455,1716951048358,-151.0,0.000216,2]
[328154456,1716951048367,-367.53199,0.000216,2]
[328154457,1716951048379,-367.53199,0.000216,2]
[328154458,1716951048388,-167.989571,0.000216,2]
[328154459,1716951048397,-167.989571,0.000216,2]
[328154460,1716951048407,-3000.0,0.0002161,2]
[328154461,1716951048416,-541.46845585,0.00021619,2]
[328154462,1716951048425,-3000.0,0.0002162,2]
[328154463,1716951048434,-3000.0,0.0002163,2]
[328154464,1716951048443,-151.0,0.0002163,2]
[328154465,1716951048452,-264.16,0.0002163,2]
[328154466,1716951048461,-3000.0,0.0002164,2]
[328154467,1716951048470,-3000.0,0.0002165,2]
[328154468,1716951048479,-620.19260839,0.00021656,2]
[328154469,1716951048489,-3000.0,0.0002166,2]
[328154470,1716951048498,-3000.0,0.0002167,2]
[328154471,1716951048507,-151.0,0.0002167,2]
[328154472,1716951048516,-151.0,0.0002167,2]
[328154473,1716951048525,-292.474854,0.0002167,2]
[328154474,1716951048535,-367.53199,0.0002167,2]
[328154475,1716951048544,-367.53199,0.0002167,2]
[328154476,1716951048553,-367.53199,0.0002167,2]
[328154477,1716951048563,-367.531997,0.0002167,2]
[328154478,1716951048572,-167.989571,0.0002167,2]
[328154479,1716951048582,-167.989571,0.0002167,2]
[328154480,1716951048592,-3000.0,0.0002168,2]
[328154481,1716951048602,-3000.0,0.0002169,2]
[328154482,1716951048611,-160.4902602,0.00021697,2]
[328154483,1716951048620,-3000.0,0.000217,2]
[328154484,1716951048630,-151.0,0.000217,2]
[328154485,1716951048639,-1216.1339167,0.0002171,2]
[328154487,1716951138749,1498.63618319,9.999e-05,2]
[328154492,1716951770643,351.76658458,9.999e-05,2]
[328154493,1716951867330,-1902.50814581,0.0001692,2]
[328154494,1716951867352,-24900.0,0.00016921,2]
[328154495,1716951867373,-1517.1314844,0.00017268,2]
[328154496,1716951867394,-6980.6683266,0.00017278,2]
[328154497,1716951867418,-461.4843564,0.00017357,2]
[328154498,1716951867438,-1094.5524531,0.00017573,2]
[328154499,1716951867459,-351.76658458,0.00017826,2]
[328154500,1716951867479,-347.337086,0.00017827,2]
[328154501,1716951867502,-621.72327997,0.00018126,2]
[328154502,1716951867522,-1116.55532449,0.0001949,2]
[328154503,1716951867543,-642.45279642,0.00019832,2]
[328154504,1716951867564,-189.84803191,0.00019836,2]
[328154505,1716951867588,-500.0,0.00019932,2]
[328154506,1716951867608,-157.04790198,0.00019932,2]
[328154507,1716951867629,-445.13085437,0.00019932,2]
[328154508,1716951867650,-403.92224189,0.00019932,2]
[328154509,1716951867675,-500.0,0.00019932,2]
[328154510,1716951867696,-461.52808306,0.00019932,2]
[328154511,1716951867721,-500.0,0.00019932,2]
[328154512,1716951867895,-500.0,0.00019932,2]
[328154513,1716951867922,-500.0,0.00019932,2]
[328154514,1716951867945,-500.0,0.00019932,2]
[328154515,1716951867970,-500.0,0.00019932,2]
[328154516,1716951867995,-500.0,0.00019932,2]
[328154517,1716951868017,-500.0,0.00019932,2]
[328154518,1716951868043,-500.0,0.00019932,2]
[328154519,1716951868070,-500.0,0.00019932,2]
[328154520,1716951868094,-258.94386692,0.00019932,2]
[328154521,1716951868120,-500.0,0.00019932,2]
[328154522,1716951868144,-500.0,0.00019932,2]
[328154523,1716951868169,-500.0,0.00019932,2]
[328154524,1716951868192,-500.0,0.00019932,2]
[328154525,1716951868216,-500.0,0.00019932,2]
[328154526,1716951868238,-500.0,0.00019932,2]
[328154527,1716951868263,-500.0,0.00019932,2]
[328154528,1716951868288,-500.0,0.00019932,2]
[328154529,1716951868313,-500.0,0.00019932,2]
[328154530,1716951868337,-500.0,0.00019932,2]
[328154531,1716951868362,-500.0,0.00019932,2]
[328154532,1716951868386,-500.0,0.00019932,2]
[328154533,1716951868417,-500.0,0.00019932,2]
[328154534,1716951868441,-500.0,0.00019932,2]
[328154535,1716951868466,-500.0,0.00019932,2]
[328154536,1716951868493,-500.0,0.00019932,2]
[328154537,1716951868519,-500.0,0.00019932,2]
[328154538,1716951868544,-500.0,0.00019932,2]
[328154539,1716951868570,-500.0,0.00019932,2]
[328154540,1716951868596,-500.0,0.00019932,2]
[328154541,1716951868621,-500.0,0.00019932,2]
[328154542,1716951868647,-500.0,0.00019932,2]
[328154543,1716951868671,-500.0,0.00019932,2]
[328154544,1716951868696,-500.0,0.00019932,2]
[328154545,1716951868723,-500.0,0.00019932,2]
[328154546,1716951868748,-500.0,0.00019932,2]
[328154547,1716951868774,-500.0,0.00019932,2]
[328154548,1716951868800,-500.0,0.00019932,2]
[328154549,1716951868826,-500.0,0.00019932,2]
[328154550,1716951868853,-500.0,0.00019932,2]
[328154551,1716951868881,-500.0,0.00019932,2]
[328154552,1716951868907,-500.0,0.00019932,2]
[328154553,1716951868933,-500.0,0.00019932,2]
[328154554,1716951868960,-500.0,0.00019932,2]
[328154555,1716951868986,-500.0,0.00019932,2]
[328154556,1716951869013,-500.0,0.00019932,2]
[328154557,1716951869043,-500.0,0.00019932,2]
[328154558,1716951869070,-500.0,0.00019932,2]
[328154559,1716951869097,-500.0,0.00019932,2]
[328154560,1716951869123,-500.0,0.00019932,2]
[328154561,1716951869150,-500.0,0.00019932,2]
[328154562,1716951869177,-500.0,0.00019932,2]
[328154563,1716951869203,-500.0,0.00019932,2]
[328154564,1716951869229,-500.0,0.00019932,2]
[328154565,1716951869254,-500.0,0.00019932,2]
[328154566,1716951869280,-500.0,0.00019932,2]
[328154567,1716951869307,-500.0,0.00019932,2]
[328154568,1716951869334,-500.0,0.00019932,2]
[328154569,1716951869360,-500.0,0.00019932,2]
[328154570,1716951869386,-500.0,0.00019932,2]
[328154571,1716951869415,-500.0,0.00019932,2]
[328154572,1716951869440,-543.93037765,0.00019932,2]
[328154573,1716951869466,-500.0,0.00019932,2]
[328154574,1716951869492,-500.0,0.00019932,2]
[328154575,1716951869518,-500.0,0.00019932,2]
[328154576,1716951869539,-1037.48107146,0.00019934,2]
[328154577,1716951869561,-44137.75257333,0.00019935,2]
[328154578,1716951869584,-1077.13470475,0.00019936,2]
[328154579,1716951869605,-642.45279638,0.00020237,2]
[328154580,1716951869628,-151.0,0.00020369,3]
[328154581,1716951869650,-642.45279638,0.00020641,2]
[328154582,1716951869670,-38337.64220132,0.00020908,2]
[328154583,1716951869691,-154.8915759,0.00020909,2]
[328154584,1716951869712,-271.63362366,0.00020909,2]
[328154585,1716951869734,-1314.63117139,0.00020909,2]
[328154586,1716951869756,-297.7590651,0.00020909,2]
[328154587,1716951869777,-347.60284516,0.00020909,2]
[328154588,1716951869799,-395.73690521,0.00020909,2]
[328154589,1716951869828,-1371.87436482,0.00020909,2]
[328154590,1716951869851,-710.19661623,0.00020909,2]
[328154591,1716951869878,-625.36455707,0.00020909,2]
[328154592,1716951869906,-155.21181659,0.00020909,2]
[328154593,1716951869928,-457.61806044,0.0002091,2]
[328154594,1716951869949,-205.45908277,0.0002091,2]
[328154595,1716951869974,-382.77257976,0.00020911,2]
[328154596,1716951869996,-155.40496994,0.00020912,2]
[328154597,1716951870018,-184.73479956,0.00020912,2]
[328154598,1716951870040,-155.12754528,0.00020912,2]
[328154599,1716951870063,-158.9670923,0.00020912,2]
[328154600,1716951870086,-921.12029061,0.00020912,2]
[328154601,1716951870108,-246.1602955,0.00020912,2]
[328154602,1716951870130,-155.26844569,0.00020912,2]
[328154603,1716951870153,-330.57900094,0.00020912,2]
[328154604,1716951870175,-383.01899267,0.00020912,2]
[328154605,1716951870197,-155.35899207,0.00020912,2]
[328154606,1716951870219,-276.44713125,0.00020912,2]
[328154607,1716951870240,-240.3342786,0.00020912,2]
[328154608,1716951870262,-164.15786613,0.00020912,2]
[328154609,1716951870283,-691.19683481,0.00020912,2]
[328154610,1716951870305,-208.64267207,0.00020912,2]
[328154611,1716951870327,-164.3084956,0.00020912,2]
[328154612,1716951870349,-155.56601865,0.00020912,2]
[328154613,1716951870371,-285.30172406,0.00020912,2]
[328154614,1716951870393,-157.62967689,0.00020913,2]
[328154615,1716951870419,-155.73251408,0.00020913,2]
[328154616,1716951870441,-155.18854789,0.00020913,2]
[328154617,1716951870464,-155.16958886,0.00020913,2]
[328154618,1716951870488,-292.0207383,0.00020913,2]
[328154619,1716951870510,-155.88917456,0.00020913,2]
[328154620,1716951870532,-204.55340907,0.00020913,2]
[328154621,1716951870553,-1736.95495256,0.00020913,2]
[328154622,1716951870575,-310.75785035,0.00020913,2]
[328154623,1716951870597,-195.9482161,0.00020913,2]
[328154624,1716951870618,-313.63995883,0.00020913,2]
[328154625,1716951870640,-165.06028387,0.00020913,2]
[328154626,1716951870661,-155.22282516,0.00020913,2]
[328154627,1716951870683,-155.49922089,0.00020913,2]
[328154628,1716951870703,-157.63760169,0.00020913,2]
[328154629,1716951870726,-183.00300041,0.00020913,2]
[328154630,1716951870748,-519.11494064,0.00020913,2]
[328154631,1716951870769,-1620.57717184,0.00020913,2]
[328154632,1716951870790,-154.90705577,0.00020913,2]
[328154633,1716951870811,-155.31679917,0.00020913,2]
[328154634,1716951870834,-155.6803101,0.00020913,2]
[328154635,1716951870986,-156.56625517,0.00020913,2]
[328154636,1716951871009,-642.45279638,0.00021046,2]
[328154637,1716951871032,-296.9581065,0.00021427,2]
[328154638,1716951871055,-291.8185968,0.00021427,2]
[328154639,1716951871079,-291.8185968,0.00021427,2]
[328154640,1716951871101,-291.4187404,0.00021427,2]
[328154641,1716951871124,-642.45279638,0.0002145,2]
[328154642,1716951871145,-160.4902602,0.00021492,2]
[328154643,1716951871168,-3000.0,0.000215,2]
[328154644,1716951871191,-3000.0,0.0002151,2]
[328154645,1716951871213,-3000.0,0.0002152,2]
[328154646,1716951871234,-3000.0,0.0002153,2]
[328154647,1716951871257,-3000.0,0.0002154,2]
[328154648,1716951871283,-18385.48079628,0.0002155,7]
[328154649,1716951871306,-3000.0,0.0002155,2]
[328154650,1716951871329,-3000.0,0.0002156,2]
[328154651,1716951871350,-151.0,0.0002157,2]
[328154652,1716951871372,-151.0,0.0002157,2]
[328154653,1716951871394,-151.0,0.0002157,2]
[328154654,1716951871419,-151.0,0.0002157,2]
[328154655,1716951871441,-214.787171,0.0002157,2]
[328154656,1716951871463,-151.0,0.0002157,2]
[328154657,1716951871486,-3000.0,0.0002157,2]
[328154658,1716951871511,-3000.0,0.0002158,2]
[328154659,1716951871533,-3000.0,0.0002159,2]
[328154660,1716951871554,-4229.06661595,0.00021591,2]
[328154661,1716951871576,-3000.0,0.000216,2]
[328154662,1716951871600,-3000.0,0.0002161,2]
[328154663,1716951871621,-3000.0,0.0002162,2]
[328154664,1716951871643,-3000.0,0.0002163,2]
[328154665,1716951871664,-3000.0,0.0002164,2]
[328154666,1716951871685,-3000.0,0.0002165,2]
[328154667,1716951871708,-3000.0,0.0002166,2]
[328154668,1716951871729,-3000.0,0.0002167,2]
[328154669,1716951871751,-3000.0,0.0002168,2]
[328154670,1716951871772,-151.0,0.0002168,2]
[328154671,1716951871793,-151.0,0.0002168,2]
[328154672,1716951871815,-151.0,0.0002168,2]
[328154673,1716951871838,-151.0,0.0002168,2]
[328154674,1716951871858,-151.0,0.0002168,2]
[328154675,1716951871881,-3000.0,0.0002169,2]
[328154676,1716951871903,-262.18580061,0.000217,2]
[328154677,1716951871926,-3000.0,0.000217,2]
[328154678,1716951871948,-3983.82636158,0.0002171,2]
[328154679,1716951871970,-461.41671968,0.0002171,2]
[328154680,1716951871992,-187.764657,0.0002171,2]
[328154681,1716951872016,-151.0,0.0002171,2]
[328154682,1716951872038,-3000.0,0.0002171,2]
[328154683,1716951872061,-5682.801245,0.0002172,2]
[328154684,1716951872084,-4253.64711436,0.0002178,2]
[328154685,1716951872106,-151.0,0.0002183,2]
[328154686,1716951872140,-282.0,0.000219,2]
[328154687,1716951872166,-151.0,0.00021915,2]
[328154688,1716951872190,-151.0,0.00021915,2]
[328154689,1716951872214,-167268.64848388,0.00021915,2]
[328154691,1716951943212,-337.45896992,0.00017256,2]
[328154692,1716952030114,-284.84475767,0.00017256,2]
[328154693,1716952030134,-351.76658458,0.00019776,2]
[328154694,1716952030155,-622.30372757,0.00019777,2]
[328154695,1716952030174,-748.69936183,0.00020905,2]
[328154696,1716952031094,-387.82110181,0.00020905,2]
[328154697,1716952033108,-671.49575434,0.00020905,2]
[328154698,1716952034088,-93.73441962,0.00020905,2]
[328154699,1716952034110,-151.0,0.0002168,2]
[328154700,1716952034131,-160.49026021,0.00021695,2]
[328154701,1716952034152,-282.0,0.000217,2]
[328154702,1716952034174,-197.79774988,0.00021814,2]
[328154703,1716952034196,-175.82368819,0.00021814,2]
[328154704,1716952054108,-413.67690844,0.00020913,2]
[328154705,1716952054131,-50.05255548,0.000217,2]
[328154762,1716952235142,-744.37021633,0.00019815,2]
[328154764,1716952235151,-0.81869417,0.00020591,2]
[328154785,1716952235339,-185.13137383,0.00020591,2]
[328154787,1716952235348,-189.84803191,0.00020813,2]
[328154789,1716952235358,-154.72244002,0.000217,2]
[328154791,1716952235367,-383.54418161,0.000217,2]
[328154846,1716952238654,-6868.3,0.0002161,2]
[328154892,1716952244172,-37.4954411,0.0002161,2]
[328154893,1716952244784,-5823.04128215,0.0002161,2]
[328154894,1716952244796,-21872.378391,0.0002161,2]
[328154895,1716952244805,-3600.28217997,0.000217,2]
[328154896,1716952244815,-461.41671968,0.000217,2]
[328154897,1716952244824,-301.85947189,0.00021814,2]
[328154898,1716952244833,-500.0,0.00021814,2]
[328154899,1716952244843,-500.0,0.00021814,2]
[328154900,1716952244852,-500.0,0.00021814,2]
[328154901,1716952244861,-500.0,0.00021814,2]
[328154902,1716952244871,-500.0,0.00021814,2]
[328154903,1716952244880,-500.0,0.00021814,2]
[328154904,1716952244889,-500.0,0.00021814,2]
[328154905,1716952244899,-500.0,0.00021814,2]
[328154906,1716952244908,-500.0,0.00021814,2]
[328154907,1716952244917,-650.0,0.00021814,2]
[328154908,1716952244927,-500.0,0.00021814,2]
[328154909,1716952244936,-500.0,0.00021814,2]
[328154910,1716952244945,-500.0,0.00021814,2]
[328154911,1716952244955,-500.0,0.00021814,2]
[328154912,1716952244965,-500.0,0.00021814,2]
[328154913,1716952244975,-596.29213228,0.00021814,2]
[328154914,1716952244984,-500.0,0.00021814,2]
[328154915,1716952244993,-500.0,0.00021814,2]
[328154916,1716952245002,-500.0,0.00021814,2]
[328154917,1716952245011,-500.0,0.00021814,2]
[328154918,1716952245020,-500.0,0.00021814,2]
[328154919,1716952245029,-500.0,0.00021814,2]
[328154920,1716952245039,-500.0,0.00021814,2]
[328154921,1716952245048,-500.0,0.00021814,2]
[328154922,1716952245057,-466.72779573,0.00021815,2]
[328154923,1716952245066,-642.45279638,0.00021815,2]
[328154924,1716952245075,-608.3770111,0.00021815,3]
[328154939,1716953193168,-169.93951706,0.00019029,2]
[328154940,1716953245104,-24730.06048294,0.00019029,2]
[328154941,1716953245126,-173.668543,0.00019674,2]
[328154942,1716953245146,-496.24681088,0.00019714,2]
[328154943,1716953245166,-456.01618426,0.00019809,2]
[328154944,1716953245188,-151.0,0.0002021,3]
[328154945,1716953245208,-7000.0,0.000205,2]
[328154946,1716953245228,-545.30705927,0.0002063,2]
[328154947,1716953245248,-1000.0,0.00020642,2]
[328154948,1716953245269,-1000.0,0.00020648,2]
[328154949,1716953245289,-1000.0,0.0002067,2]
[328154950,1716953245309,-1000.0,0.00020687,2]
[328154951,1716953245329,-1000.0,0.00020688,2]
[328154952,1716953245350,-632.20301158,0.00020693,2]
[328154953,1716953245370,-1000.0,0.00020694,2]
[328154954,1716953245390,-1000.0,0.0002072,2]
[328154955,1716953245410,-1000.0,0.00020723,2]
[328154956,1716953245429,-1000.0,0.0002073,2]
[328154957,1716953245449,-1000.0,0.0002074,2]
[328154958,1716953245469,-1000.0,0.00020751,2]
[328154959,1716953245489,-1000.0,0.00020794,2]
[328154960,1716953245512,-932.02004463,0.00020813,2]
[328154961,1716953245540,-1000.0,0.00020819,2]
[328154962,1716953245567,-1000.0,0.00020823,2]
[328154963,1716953245593,-1000.0,0.00020823,2]
[328154964,1716953245615,-1000.0,0.00020824,2]
[328154965,1716953245636,-1000.0,0.00020838,2]
[328154966,1716953245656,-1000.0,0.00020846,2]
[328154967,1716953245678,-1000.0,0.00020849,2]
[328154968,1716953245699,-1000.0,0.00020853,2]
[328154969,1716953245720,-1000.0,0.00020876,2]
[328154970,1716953245742,-1000.0,0.00020878,2]
[328154971,1716953245763,-7569.07497904,0.0002091,7]
[328154972,1716953245783,-551.27051016,0.00020911,2]
[328154973,1716953245804,-2505.45290604,0.00020911,2]
[328154974,1716953245826,-419.0070686,0.00020911,2]
[328154975,1716953245855,-500.0,0.00020911,2]
[328154976,1716953245878,-500.0,0.00020911,2]
[328154977,1716953245905,-500.0,0.00020911,2]
[328154978,1716953245929,-500.0,0.00020911,2]
[328154979,1716953245954,-500.0,0.00020911,2]
[328154980,1716953245978,-500.0,0.00020911,2]
[328154981,1716953246003,-523.88763968,0.00020911,2]
[328154982,1716953246023,-154.95351395,0.00020912,2]
[328154983,1716953246044,-281.85841065,0.00020912,2]
[328154984,1716953246064,-838.39888179,0.00020912,2]
[328154985,1716953246084,-11070.84264273,0.00020912,2]
[328154986,1716953246104,-10520.83000552,0.00020912,2]
[328154987,1716953246126,-720.80072405,0.00020912,2]
[328154988,1716953246146,-158.7061959,0.00020912,2]
[328154989,1716953246167,-528.89075591,0.00020912,2]
[328154990,1716953246187,-9390.38788494,0.00020912,2]
[328154991,1716953246207,-2681.89337139,0.00020913,2]
[328154992,1716953246230,-545.30705924,0.00020927,2]
[328154993,1716953246250,-545.30705924,0.00021224,2]
[328154994,1716953246273,-150.0,0.000215,2]
[328154995,1716953246293,-545.30705924,0.0002152,2]
[328154996,1716953246313,-1000.0,0.00021626,2]
[328154997,1716953246334,-1000.0,0.00021696,2]
[328154998,1716953246354,-586.29641116,0.000217,2]
[328154999,1716953246376,-1000.0,0.00021726,2]
[328155000,1716953246395,-1008.4760926,0.00021775,2]
[328155001,1716953246416,-3983.82636158,0.00021815,2]
[328155002,1716953246436,-44378.59571418,0.00021815,3]
[328155003,1716953246456,-545.30705924,0.00021817,2]
[328155004,1716953246476,-300.44114476,0.00021858,2]
[328155005,1716953246496,-282.0,0.000219,2]
[328155006,1716953246517,-32005.72047061,0.00021915,2]
[328155007,1716953249107,-11813.78899548,0.00021915,2]
[328155008,1716953250095,-9192.74039814,0.00021915,7]
[328155009,1716953250116,-32130.31337456,0.00021915,2]
[328155026,1716953432807,-330.83120726,0.00019815,2]
[328155027,1716953432817,-508.4396473,0.00021,2]
[328155028,1716953432829,-2272.88270416,0.00021,2]
[328155029,1716953432838,-163.35253627,0.00021815,2]
[328155030,1716953432847,-417.21007658,0.00021817,2]
[328155031,1716953432857,-500.0,0.00021914,2]
[328155032,1716953432866,-557.16629191,0.00021914,2]
[328155033,1716953432875,-4596.37019907,0.00021915,7]
[328155034,1716953432884,-41782.92749616,0.00021915,2]
[328155035,1716953432895,-1048.245,0.00021915,2]
[328155047,1716953438897,-8695.03066,0.00020729,2]
[328155048,1716953438911,-267.45300945,0.00020729,2]
[328155050,1716953442471,-1345.14829684,0.00020729,2]
[328155051,1716953442513,-3872.8675467,0.00020729,2]
[328155052,1716953442525,-302.0,0.00020729,2]
[328155053,1716953442809,-3908.42677184,0.00020729,2]
[328155073,1716953447125,-316.0513955,0.00020729,2]
[328155082,1716954411178,-173.6685442,0.00019697,2]
[328155083,1716954411202,-77.67853101,0.00019815,2]
[328155088,1716954429104,-142.87560716,0.00019815,2]
[328155089,1716954429126,-20598.05588284,0.00019867,2]
[328155090,1716954431086,-4301.94411716,0.00019867,2]
[328155091,1716954431107,-365.05881699,0.00020813,2]
[328155092,1716954431126,-547.14039385,0.00020912,2]
[328155093,1716954431147,-1152.82161356,0.00020912,2]
[328155094,1716954431166,-316.74549754,0.00020912,2]
[328155095,1716954431186,-1902.01092962,0.00020912,2]
[328155096,1716954431207,-218.78132255,0.00020912,2]
[328155097,1716954431226,-257.04312476,0.00020912,2]
[328155098,1716954431244,-295.18250646,0.00020912,2]
[328155099,1716954431267,-232.27691535,0.00020912,2]
[328155100,1716954431287,-10235.31701441,0.00020913,2]
[328155101,1716954446101,-285.51299111,0.00020913,2]
[328155102,1716954446121,-300.0,0.00021,2]
[328155103,1716954446140,-178.8256923,0.00021815,2]
[328155104,1716954446163,-178.82569229,0.00021816,2]
[328155105,1716954446185,-59.76301096,0.00021816,2]
[328155150,1716954632631,-150.0,0.000189,2]
[328155152,1716954632641,-319.42646484,0.00021817,2]
[328155154,1716954632650,-47.81781501,0.00021817,2]
[328155159,1716954632688,-428.8962509,0.00021817,2]
[328155161,1716954632698,-147.68447221,0.00021817,2]
[328155164,1716954632709,-238.13282927,0.00021817,2]
[328155166,1716954632719,-282.0,0.000219,2]
[328155168,1716954632728,-251.34707521,0.00021914,2]
[328155170,1716954632738,-55.17730929,0.00021915,2]
[328155245,1716954639759,-2036.25396093,0.00021915,2]
[328155246,1716954639770,-2298.18509954,0.00021915,7]
[328155247,1716954639780,-3784.53748952,0.00021915,7]
[328155248,1716954639790,-51945.55707236,0.00021915,2]
[328155250,1716954639828,-2676.14265472,0.00021915,2]
[328155251,1716954639840,-1030.64053897,0.00021915,2]
[328155260,1716954642056,-1821.85484335,0.00021915,2]
[328155261,1716954642070,-6470.95380772,0.00021915,2]
[328155274,1716954646832,-4368.0539839,0.00020916,2]
[328155275,1716954646841,-150005.20726219,0.00021915,2]
[328155276,1716954646850,-500.0,0.00021917,2]
[328155277,1716954646859,-509.74088859,0.00021917,2]
[328155278,1716954646868,-500.0,0.00021917,2]
[328155279,1716954646878,-499.47345166,0.00021917,2]
[328155280,1716954646887,-500.0,0.00021917,2]
[328155281,1716954646898,-500.0,0.00021917,2]
[328155282,1716954646908,-500.0,0.00021917,2]
[328155283,1716954646917,-507.72405493,0.00021917,2]
[328155284,1716954646926,-500.0,0.00021917,2]
[328155285,1716954646935,-509.62420275,0.00021917,2]
[328155286,1716954646945,-500.0,0.00021917,2]
[328155287,1716954646955,-568.86,0.00021917,2]
[328155288,1716954646966,-565.71062771,0.00021917,2]
[328155289,1716954646975,-500.0,0.00021917,2]
[328155290,1716954646985,-500.0,0.00021917,2]
[328155291,1716954646995,-500.0,0.00021917,2]
[328155292,1716954647005,-500.0,0.00021917,2]
[328155293,1716954647014,-511.43965479,0.00021917,2]
[328155294,1716954647024,-501.67080288,0.00021917,2]
[328155295,1716954647033,-507.11877024,0.00021917,2]
[328155296,1716954647043,-500.0,0.00021917,2]
[328155297,1716954647052,-500.0,0.00021917,2]
[328155298,1716954647062,-500.0,0.00021917,2]
[328155299,1716954647072,-500.0,0.00021917,2]
[328155300,1716954647082,-500.0,0.00021917,2]
[328155301,1716954647092,-507.03438945,0.00021917,2]
[328155302,1716954647102,-500.0,0.00021917,2]
[328155303,1716954647111,-281.1343385,0.00021917,2]
[328155304,1716954647121,-500.0,0.00021917,2]
[328155305,1716954647130,-502.24863939,0.00021917,2]
[328155306,1716954647140,-611.49,0.00021917,2]
[328155307,1716954647150,-500.0,0.00021917,2]
[328155308,1716954647159,-500.0,0.00021917,2]
[328155309,1716954647169,-500.0,0.00021917,2]
[328155310,1716954647180,-173.6613768,0.00021917,2]
[328155311,1716954647190,-500.09995378,0.00021917,2]
[328155312,1716954647199,-500.0,0.00021917,2]
[328155313,1716954647209,-500.0,0.00021917,2]
[328155314,1716954647218,-500.0,0.00021917,2]